[Event "African Individual Chess-ch Open 2024"]
[Site "Accra"]
[Date "2024.03.19"]
[Round "8.4"]
[White "Kayonde, Andrew"]
[Black "Zhemba, Jemusse"]
[Result "1-0"]
[ECO "D02"]
[WhiteElo "2321"]
[BlackElo "2226"]
[Annotator "TA"]
[PlyCount "85"]
[EventDate "2024.03.13"]
[EventCountry "GHA"]
[SourceTitle "playchess.com"]
[Source "ChessBase"]
[SourceQuality "1"]
[TimeControl "5400+30"]

{[%evp 9,85,21,37,22,55,55,60,24,93,76,62,45,152,127,179,178,234,204,191,179,172,140,156,125,267,278,265,258,279,284,299,286,318,338,345,291,291,300,289,304,240,206,328,320,288,160,412,407,409,408,400,405,400,403,422,450,423,420,423,406,552,458,544,511,559,563,934,935,1115,1099,999,912,1102,1068,29984,29985,29985,29986]} 1. d4 {[%emt 0:00:10]} d5 {[%emt 0:00:18]} 2. Nf3 {[%emt 0:00:51]} e6 {[%emt 0:00:16]} 3. e3 {[%emt 0:00:14]} Nf6 {[%emt 0:00:37]} 4. Nbd2 {[%emt 0:00:44]} Nc6 {[%emt 0:00:17]} 5. Bd3 {[%emt 0:08:17]} g5 {[%emt 0:01:33]} 6. Nxg5 {[%emt 0:01:49] Hoping for 0-0.} e5 {[%emt 0:00:22]} 7. dxe5 {[%emt 0:02:12]} Nxe5 {[%emt 0:00:08]} 8. Be2 {[%emt 0:03:35] White is slightly better.} Bb4 {[%emt 0:04:32]} (8... Qe7 $11) 9. c3 {[%emt 0:04:44]} Bd6 {[%emt 0:00:11]} 10. Ngf3 {[%emt 0:07:45]} Neg4 {[%emt 0:04:16]} (10... Rg8 $14) 11. h3 {[%emt 0:11:18]} Nxe3 {[%emt 0:02:49]} 12. fxe3 $18 {[%emt 0:01:09][%cal Oe3e4]} Bg3+ {[%emt 0:00:06]} 13. Kf1 {[%emt 0:00:19][%cal Oe3e4]} Qe7 {[%emt 0:00:08]} 14. Bd3 {[%emt 0:00:52][%cal Oe3e4] Threatens to win with e4!} Bd7 {[%emt 0:00:31]} 15. Ke2 {[%emt 0:04:28]} c5 {[%emt 0:00:56]} 16. Nf1 {[%emt 0:01:06]} Nh5 {[%emt 0:01:27] This costs Black the game.} (16... Bc7 $16 {was necessary.}) 17. Nxg3 {[%emt 0:01:20]} Nxg3+ {[%emt 0:00:08]} 18. Kf2 {[%emt 0:00:08]} Nxh1+ {[%emt 0:00:09]} 19. Qxh1 {[%emt 0:00:09]} O-O-O {[%emt 0:00:16]} 20. Qh2 {[%emt 0:00:25]} Rde8 {[%emt 0:00:33]} 21. Qf4 {[%emt 0:01:24]} f5 {[%emt 0:07:20]} 22. c4 {[%emt 0:04:22]} (22. Bxf5 Rhf8) 22... dxc4 {[%emt 0:00:27]} 23. Qxc4 {[%emt 0:00:21]} Rhg8 {[%emt 0:01:27]} 24. Qf4 {[%emt 0:03:38] Repels Qd6} (24. b4 $2 Qg7 25. Qxc5+ Kb8 $19) 24... Qg7 {[%emt 0:00:37]} 25. Ne1 {[%emt 0:05:08]} (25. Bxf5 $2 Qxg2+ 26. Ke1 Bxf5 27. Qxf5+ Kb8 $19) 25... c4 {[%emt 0:00:56]} (25... Bc6 $142 26. Bxf5+ (26. Qxf5+ Kb8 $11) 26... Bd7) 26. Qxc4+ {[%emt 0:00:55]} ({Not} 26. Bxc4 Re4 27. Bxg8 Rxf4+ 28. exf4 Qxg8 $17) 26... Kb8 {[%emt 0:00:07]} 27. Bd2 {[%emt 0:03:36]} ({White should try} 27. Qd4 $18) 27... f4 $2 {[%emt 0:00:32]} (27... Ka8 $16 28. Qf4 Qxb2) 28. Qxf4+ {[%emt 0:00:32]} Ka8 {[%emt 0:00:05]} 29. Bc3 {[%emt 0:00:18]} Qe7 {[%emt 0:00:36] [#] ...Rgf8 would now be deadly.} 30. Bf6 {[%emt 0:02:23]} Qc5 {[%emt 0:00:30]} 31. g4 {[%emt 0:05:27][%cal Bg2g4,Bg4g5][%mdl 32]} (31. Bxh7 Rgf8 $16) 31... h5 {[%emt 0:00:53]} 32. g5 {[%emt 0:06:29]} Bxh3 {[%emt 0:04:10]} 33. Bh7 {[%emt 0:01:01]} Rgf8 {[%emt 0:00:23]} 34. Bg6 {[%emt 0:00:22]} Re5 {[%emt 0:01:09][%cal Be8e5,Be5d5,Bd5d7,Bd7d2][%mdl 32]} 35. Nf3 {[%emt 0:01:43]} ({Inferior is} 35. Bxh5 Rf5 36. Nd3 Qd5 $19 (36... Rxf4+ 37. Nxf4 Bf5 38. Rd1 $17)) 35... Rd5 {[%emt 0:00:59]} 36. Be4 {[%emt 0:02:16]} Rd7 {[%emt 0:01:09]} 37. Kg3 {[%emt 0:00:38][%cal Bf2g3,Bg3g4,Bg4f4][%mdl 32]} Bg4 {[%emt 0:00:18]} 38. Ne5 {[%emt 0:01:10]} Rd2 {[%emt 0:01:28]} 39. Nxg4 {[%emt 0:00:49]} hxg4 {[%emt 0:00:42]} 40. Kxg4 {[%emt 0:00:15]} Qb5 {[%emt 0:01:09]} 41. Rc1 {[%emt 0:02:32] [#] Strongly threatening Rc7.} Rxb2 {[%emt 0:04:06]} 42. Bxb2 {[%emt 0:01:19]} Rxf4+ {[%emt 0:00:15]} 43. Kxf4 {[%emt 0:00:40] Weighted Error Value: White=0.22 (precise) /Black=0.53.  Loses game:     	---       	Black=1      Mistake:       	White=1     	Black=5      Inaccurate:     	White=1     	Black=3      OK:         	White=16    	Black=12     Best:        	White=1     	Black=1} 1-0

[Event "African Individual Chess-ch Open 2024"]
[Site "Accra"]
[Date "2024.03.19"]
[Round "8.5"]
[White "Cogan, Nicolas"]
[Black "Aikhoje, Odion"]
[Result "1/2-1/2"]
[ECO "A56"]
[WhiteElo "2070"]
[BlackElo "2215"]
[Annotator "RC"]
[PlyCount "172"]
[EventDate "2024.03.13"]
[EventCountry "GHA"]
[SourceTitle "playchess.com"]
[Source "ChessBase"]
[SourceQuality "1"]
[TimeControl "5400+30"]

1. d4 {[%emt 0:01:51]} Nf6 {[%emt 0:00:19]} 2. c4 {[%emt 0:00:12]} c5 {[%emt 0:03:04]} 3. d5 {[%emt 0:00:29]} a6 {[%emt 0:00:17]} 4. Nf3 {[%emt 0:01:06]} d6 {[%emt 0:00:35]} 5. Qc2 {[%emt 0:04:34]} e5 {[%emt 0:00:19]} 6. dxe6 {[%emt 0:01:15]} Bxe6 {[%emt 0:00:23]} 7. e4 {[%emt 0:02:04]} Nc6 {[%emt 0:00:16]} 8. Bg5 {[%emt 0:02:13]} Be7 {[%emt 0:01:54]} 9. a3 {[%emt 0:06:53]} h6 {[%emt 0:04:47]} 10. Bh4 {[%emt 0:02:39]} Ng4 {[%emt 0:04:56]} 11. Bxe7 {[%emt 0:01:59]} Qxe7 {[%emt 0:00:15]} 12. Be2 {[%emt 0:02:40]} Nge5 {[%emt 0:00:21]} 13. Nbd2 {[%emt 0:00:38]} g5 {[%emt 0:01:58]} 14. O-O {[%emt 0:05:01]} g4 {[%emt 0:02:46]} 15. Ne1 {[%emt 0:01:57]} Nd4 {[%emt 0:02:35]} 16. Qd1 {[%emt 0:00:47]} Qg5 {[%emt 0:04:55]} 17. Kh1 {[%emt 0:04:02]} Rg8 {[%emt 0:00:56]} 18. Nc2 {[%emt 0:59:10]} Rc8 {[%emt 0:06:28]} 19. Nxd4 {[%emt 0:00:00]} cxd4 {[%emt 0:00:19]} 20. Nb3 {[%emt 0:00:00]} d3 {[%emt 0:09:47]} 21. Bxd3 {[%emt 0:00:00]} Nxd3 {[%emt 0:00:57]} 22. Qxd3 {[%emt 0:00:00]} Bxc4 {[%emt 0:00:15]} 23. Qc3 {[%emt 0:00:00]} Be6 {[%emt 0:01:02]} 24. Qb4 {[%emt 0:00:00]} Qb5 {[%emt 0:01:45]} 25. Qxb5+ {[%emt 0:00:00]} axb5 {[%emt 0:00:08]} 26. Nd4 {[%emt 0:00:00]} Bd7 {[%emt 0:00:07]} 27. Rfd1 {[%emt 0:00:00]} Rg5 {[%emt 0:03:07]} 28. Rd2 {[%emt 0:00:00]} Re5 {[%emt 0:04:47]} 29. Ne2 {[%emt 0:00:00]} Rxe4 {[%emt 0:02:12]} 30. Nc3 {[%emt 0:00:00]} Re6 {[%emt 0:01:43]} 31. Rad1 {[%emt 0:00:00]} Rc5 {[%emt 0:03:00]} 32. Rxd6 {[%emt 0:02:35]} Rxd6 {[%emt 0:02:06]} 33. Rxd6 {[%emt 0:00:02]} Re5 {[%emt 0:00:12]} 34. Rd1 {[%emt 0:01:12]} Bc6 {[%emt 0:00:21]} 35. Kg1 {[%emt 0:01:06]} Ke7 {[%emt 0:01:23]} 36. Kf1 {[%emt 0:00:13]} Ke6 {[%emt 0:00:32]} 37. Rd2 {[%emt 0:02:43]} Rh5 {[%emt 0:00:23]} 38. Kg1 {[%emt 0:00:14]} Rc5 {[%emt 0:01:03]} 39. Kf1 {[%emt 0:00:15]} Rc4 {[%emt 0:02:00]} 40. Na2 {[%emt 0:02:08]} h5 {[%emt 0:05:55]} 41. Nc3 {[%emt 0:00:00]} b4 {[%emt 0:00:00]} 42. axb4 {[%emt 0:00:00]} Rxb4 {[%emt 0:00:00]} 43. Ne2 {[%emt 0:00:00]} Ke5 {[%emt 0:00:00]} 44. Nc1 {[%emt 0:00:00]} Ra4 {[%emt 0:00:00]} 45. Nd3+ {[%emt 0:00:23]} Kf5 {[%emt 0:00:00]} 46. Rc2 {[%emt 0:00:21]} Rd4 {[%emt 0:00:00]} 47. Rc5+ {[%emt 0:01:17]} Ke4 {[%emt 0:00:00]} 48. Ne1 {[%emt 0:00:59]} Rb4 {[%emt 0:00:00]} 49. f3+ {[%emt 0:01:28]} gxf3 {[%emt 0:00:00]} 50. gxf3+ {[%emt 0:00:22]} Kd4 {[%emt 0:00:00]} 51. Rc2 {[%emt 0:00:40]} Rb3 {[%emt 0:00:00]} 52. Kf2 {[%emt 0:00:26]} h4 {[%emt 0:00:00]} 53. Rd2+ {[%emt 0:00:26]} Kc4 {[%emt 0:00:20]} 54. Kg2 {[%emt 0:00:38]} Rb5 {[%emt 0:04:32]} 55. Kh3 {[%emt 0:00:29]} Re5 {[%emt 0:01:15]} 56. Ng2 {[%emt 0:00:29]} Bxf3 {[%emt 0:00:45]} 57. Nxh4 {[%emt 0:00:03]} Bd5 {[%emt 0:01:45]} 58. Kg3 {[%emt 0:00:57]} b5 {[%emt 0:05:27]} 59. Nf3 {[%emt 0:00:33]} Re3 {[%emt 0:06:00]} 60. Rf2 {[%emt 0:00:23]} Kb3 {[%emt 0:02:39]} 61. h4 {[%emt 0:00:28]} b4 {[%emt 0:01:07]} 62. h5 {[%emt 0:00:26]} Ka2 {[%emt 0:01:47]} 63. h6 {[%emt 0:00:42]} f6 {[%emt 0:03:19]} 64. Kf4 {[%emt 0:00:28]} Re8 {[%emt 0:00:58]} 65. Kf5 {[%emt 0:00:32]} Rh8 {[%emt 0:00:21]} 66. Kg6 {[%emt 0:00:30]} Be4+ {[%emt 0:00:19]} 67. Kh5 {[%emt 0:00:25]} Rd8 {[%emt 0:01:55]} 68. Kg4 {[%emt 0:00:35]} Bh7 {[%emt 0:00:45]} 69. Re2 {[%emt 0:00:30]} Rg8+ {[%emt 0:01:19]} 70. Kf4 {[%emt 0:00:11]} Rg6 {[%emt 0:00:48]} 71. Rh2 {[%emt 0:00:18]} b3 {[%emt 0:00:44]} 72. Nd4 {[%emt 0:00:51]} Rg8 {[%emt 0:00:43]} 73. Rh3 {[%emt 0:00:37]} Rb8 {[%emt 0:00:16]} 74. Rh2 {[%emt 0:00:34]} Re8 {[%emt 0:01:36]} 75. Kf3 {[%emt 0:00:29]} Rc8 {[%emt 0:02:02]} 76. Ke3 {[%emt 0:00:30]} Rc7 {[%emt 0:01:21]} 77. Rf2 {[%emt 0:00:28]} Rf7 {[%emt 0:01:55]} 78. Nb5 {[%emt 0:00:31]} Bc2 {[%emt 0:00:53]} 79. Nd6 {[%emt 0:00:29]} Re7+ {[%emt 0:00:28]} 80. Kd4 {[%emt 0:00:29]} Kxb2 {[%emt 0:00:44]} 81. Nc4+ {[%emt 0:00:32]} Ka2 {[%emt 0:01:28]} 82. Rxf6 {[%emt 0:00:25]} Ra7 {[%emt 0:00:22]} 83. Kc3 {[%emt 0:00:37]} Bh7 {[%emt 0:01:10]} 84. Rf2+ {[%emt 0:00:28]} Bc2 {[%emt 0:00:12]} 85. Rf6 {[%emt 0:01:03]} Bh7 {[%emt 0:00:52]} 86. Rf2+ {[%emt 0:00:00]} Bc2 {[%emt 0:00:48]} 1/2-1/2

[Event "African Individual Chess-ch Open 2024"]
[Site "Accra"]
[Date "2024.03.19"]
[Round "8.6"]
[White "Paiva, Donaldo"]
[Black "KIGIGHA, Bomo Lovet"]
[Result "1/2-1/2"]
[ECO "E04"]
[WhiteElo "2172"]
[BlackElo "2231"]
[Annotator "TA"]
[PlyCount "125"]
[EventDate "2024.03.13"]
[EventCountry "GHA"]
[SourceTitle "playchess.com"]
[Source "ChessBase"]
[SourceQuality "1"]
[TimeControl "5400+30"]

{[%evp 27,125,-337,-291,-292,331,-501,-500,-455,-164,-166,-51,-45,-46,-37,-51,-137,-7,-1,-4,-8,-8,-6,-2,-67,-19,-14,-12,-77,-27,-30,0,0,0,0,0,0,0,0,0,0,0,-2,60,48,53,0,0,0,0,0,0,0,0,-8,0,0,0,0,0,0,0,0,0,0,0,0,0,-4,-4,-4,-5,-8,-8,-12,-12,-12,-12,-12,-12,-12,-12,-12,-12,-12,-12,-12,0,-12,0,-12,-12,-12,-12,-12,-12,-12,-12,-12,0,0]} 1. d4 {[%emt 1:31:00]} Nf6 {[%emt 0:00:11]} 2. c4 {[%emt 0:00:00]} e6 {[%emt 0:00:09]} 3. Nf3 {[%emt 0:00:00]} d5 {[%emt 0:01:02]} 4. g3 {[%emt 0:00:00]} dxc4 {[%emt 0:02:09]} 5. Bg2 {[%emt 0:00:00]} a6 {[%emt 0:00:14]} 6. Qc2 {[%emt 0:00:00] E04: Open Catalan: 5 Nf3.} b5 {[%emt 0:00:29]} 7. a4 {[%emt 0:00:00]} Bb7 {[%emt 0:00:39]} 8. Nbd2 {[%emt 0:00:00]} Nc6 {[%emt 0:02:01]} 9. O-O {[%emt 0:00:00]} Nb4 {[%emt 0:01:51]} 10. Qb1 {[%emt 0:00:00]} Be7 $146 {[%emt 0:00:19]} ({Predecessor:} 10... c5 11. b3 c3 12. Ba3 cxd2 13. Nxd2 Bxg2 14. Kxg2 cxd4 15. Nf3 Rc8 16. Rd1 Nc6 17. Bxf8 Kxf8 18. e3 Qd5 19. exd4 g5 20. Qc1 g4 21. Qh6+ Ke7 {0-1 Bartos,V (1809)-Vlkova,A (1973) Ricany op-A 2019 (4)}) 11. Rd1 {[%emt 0:00:00]} c5 {[%emt 0:05:21]} 12. e3 {[%emt 0:00:00]} O-O {[%emt 0:00:34]} 13. axb5 {[%emt 0:00:00]} axb5 {[%emt 0:00:07]} 14. Ra3 {[%emt 0:06:30]} Ra6 15. Rxa6 {[%emt 0:00:00]} Qb8 $4 {[%emt 1:22:54][%mdl 8192] [#]} ({Much less strong is} 15... Bxa6 16. Ne4 $19) (15... Nxa6 $19 16. Qa1 Qa8) 16. Ra8 $4 {[%mdl 8192]} (16. Rb6 $3 $18 {[%mdl 512]}) 16... Qxa8 $19 {[%emt 0:00:00]} 17. dxc5 {[%emt 0:00:00]} Ne4 $2 {[%emt 0:00:00]} (17... Bxc5 18. Nh4 Bxg2 19. Nxg2 Rd8) 18. c6 $19 {[%emt 0:00:00]} Nxd2 {[%emt 0:00:00]} (18... Bxc6 $19 19. Nd4 Nxd2 20. Nxc6 Nxb1 21. Nxe7+ Kh8 22. Bxa8 Rxa8) 19. cxb7 $15 {[%emt 0:00:00]} Nxb1 {[%emt 0:00:00]} 20. bxa8=Q {[%emt 0:00:00]} Rxa8 {[%emt 0:00:00]} 21. Ne5 {[%emt 0:00:00] [#]} (21. Nd4 $15 Rd8 22. Rf1) 21... Rc8 {[%emt 0:00:00]} ({Better is} 21... Rd8 $1 $17 {[%cal Rd8d1]} 22. Rf1 Nd2 23. Bxd2 Rxd2) 22. Be4 $1 $11 {[%emt 0:00:00]} c3 {[%emt 0:00:00]} 23. Bxb1 {[%emt 0:00:00]} c2 {[%emt 0:00:00]} 24. Bxc2 $1 {[%emt 0:00:00]} Rxc2 {[%emt 0:00:00]} 25. b3 {[%emt 0:00:00]} (25. Bd2 $1 $11 Nd5 (25... Rxb2 26. Bxb4 Rxb4 27. Nc6 $14) 26. Nd3) 25... Nd5 {[%emt 0:00:00]} (25... f6 $15 26. Nf3 Nc6) 26. Bd2 $11 {[%emt 0:00:00]} f5 {[%emt 0:00:00]} 27. Ba5 {[%emt 0:00:00]} (27. Be1 $11 {keeps the balance.}) 27... Ra2 {[%emt 0:00:00]} (27... b4 $17) 28. Nc6 {[%emt 0:00:00]} Bc5 {[%emt 0:00:00]} 29. b4 {[%emt 0:00:00]} Bf8 {[%emt 0:00:00]} 30. Nd4 {[%emt 0:00:00]} Nxb4 {[%emt 0:00:00]} 31. Bxb4 {[%emt 0:00:00]} Bxb4 {[%emt 0:00:00]} 32. Nxb5 {[%emt 0:00:00]} Kf7 {[%emt 0:00:00]} 33. Rc1 {[%emt 0:00:00]} Kf6 {[%emt 0:00:00]} 34. Nd4 {[%emt 0:00:00]} Kf7 {[%emt 0:00:00]} ({Black should try} 34... Ra6 $11) 35. Rc7+ $1 $14 {[%emt 0:00:00]} Kf6 $1 {[%emt 0:00:00]} 36. Kf1 {[%emt 0:00:00]} (36. Rc6 $14) 36... Ra6 $11 {[%emt 0:00:00]} 37. h4 {[%emt 0:00:00]} h6 {[%emt 0:00:00]} 38. f4 {[%emt 0:00:00]} Bd6 {[%emt 0:00:00]} 39. Rd7 {[%emt 0:00:00]} Bc5 {[%emt 0:00:27]} 40. Ke2 {[%emt 0:00:00]} g5 {[%emt 0:01:08]} 41. hxg5+ {[%emt 0:00:00]} hxg5 {[%emt 0:00:02]} 42. Nf3 {[%emt 0:00:00]} Ra2+ {[%emt 0:00:49]} 43. Rd2 {[%emt 0:00:00]} Rxd2+ {[%emt 0:01:44]} 44. Kxd2 {[%emt 0:01:00]} Bb4+ {[%emt 0:00:15]} 45. Ke2 {[%emt 0:00:16]} g4 {[%emt 0:00:14]} 46. Ne5 {[%emt 0:00:10]} Bc3 {[%emt 0:00:25]} 47. Nd3 {[%emt 0:00:07]} Ke7 {[%emt 0:00:16]} 48. e4 {[%emt 0:00:20]} Kd6 {[%emt 0:00:34]} 49. exf5 {[%emt 0:00:58]} exf5 {[%emt 0:00:01]} 50. Ke3 {[%emt 0:01:46]} Kd5 {[%emt 0:00:14]} 51. Ke2 {[%emt 0:00:10]} Bd4 {[%emt 0:00:18]} 52. Ne1 {[%emt 0:01:36]} Ke4 {[%emt 0:00:25]} 53. Ng2 {[%emt 0:00:25]} Bb6 {[%emt 0:00:42]} 54. Nh4 {[%emt 0:00:11]} Bc7 {[%emt 0:00:12]} 55. Ng2 {[%emt 0:00:10]} Bb8 {[%emt 0:00:07]} 56. Nh4 {[%emt 0:00:24]} Bc7 {[%emt 0:00:59]} 57. Ng2 {[%emt 0:00:07]} Bb6 {[%emt 0:00:09]} 58. Nh4 {[%emt 0:00:07]} Bg1 {[%emt 0:02:15]} 59. Ng2 {[%emt 0:00:33]} Bc5 {[%emt 0:00:10]} 60. Nh4 {[%emt 0:00:07]} Bd6 {[%emt 0:00:00]} 61. Ng2 {[%emt 0:00:06]} Bc7 {[%emt 0:00:04]} 62. Nh4 {[%emt 0:00:12]} Bxf4 {[%emt 0:00:22]} 63. gxf4 {[%emt 0:04:26]} 1/2-1/2

[Event "African Individual Chess-ch Open 2024"]
[Site "Accra"]
[Date "2024.03.19"]
[Round "8.7"]
[White "ONOKPITE, Kennedy"]
[Black "Abdulraheem Abdulrahman Akinto"]
[Result "0-1"]
[ECO "D02"]
[WhiteElo "2101"]
[BlackElo "2229"]
[Annotator "TA"]
[PlyCount "87"]
[EventDate "2024.03.13"]
[EventCountry "GHA"]
[SourceTitle "playchess.com"]
[Source "ChessBase"]
[SourceQuality "1"]
[TimeControl "5400+30"]

{[%evp 15,87,-14,0,0,0,-20,-20,-29,0,-22,-9,-18,-18,-16,-17,-26,23,-38,-19,-18,-20,-26,-20,-47,0,0,0,0,6,0,42,-29,0,-58,0,-3,-2,-1,-7,-176,-175,-134,-173,-506,-531,-484,-486,-667,-479,-647,-486,-501,-493,-597,-587,-532,-400,-421,-416,-428,-431,-437,-415,-666,-660,-2720,-566,-681,-673,-6379,-6252,-5485,-5485,-1980]} 1. d4 {[%emt 0:00:04]} Nf6 {[%emt 0:00:17]} 2. Bf4 {[%emt 0:00:07]} d5 {[%emt 0:00:34]} 3. e3 {[%emt 0:00:09]} e6 {[%emt 0:00:27]} 4. Nd2 {[%emt 0:00:23]} c5 {[%emt 0:00:19]} 5. c3 {[%emt 0:00:04]} Nc6 {[%emt 0:00:23]} 6. Ngf3 {[%emt 0:00:06]} Bd6 {[%emt 0:00:30]} 7. Bg3 {[%emt 0:00:20]} O-O {[%emt 0:00:18]} 8. Bd3 {[%emt 0:00:40]} b6 {[%emt 0:00:20]} 9. e4 {[%emt 0:01:26] Bxd6 is the strong threat.} Be7 {[%emt 0:00:25]} 10. e5 {[%emt 0:00:51]} Nh5 {[%emt 0:00:17]} 11. a3 {[%emt 0:00:38] The position is equal.} g6 {[%emt 0:03:15]} 12. O-O {[%emt 0:03:49]} a5 {[%emt 0:00:33]} 13. Qe2 {[%emt 0:00:10]} c4 {[%emt 0:01:53]} 14. Bc2 {[%emt 0:00:36]} b5 {[%emt 0:00:21]} 15. Qe3 {[%emt 0:00:07]} Kg7 {[%emt 0:01:45]} (15... Bd7 $142) 16. Bf4 {[%emt 0:00:45]} ({White should play} 16. h4 $11) 16... Nxf4 $15 {[%emt 0:00:34]} 17. Qxf4 {[%emt 0:00:01]} Bd7 {[%emt 0:05:31]} 18. Rfe1 {[%emt 0:01:46]} b4 {[%emt 0:02:12]} 19. Nf1 {[%emt 0:00:07]} bxc3 {[%emt 0:25:21]} (19... f5 $15) 20. bxc3 $11 {[%emt 0:00:09]} Rb8 {[%emt 0:00:25][%cal Oa5a4]} 21. h4 {[%emt 0:01:24]} Rb2 {[%emt 0:01:10]} 22. Ne3 {[%emt 0:01:49]} h5 {[%emt 0:04:40][%cal Oa5a4]} 23. Bd1 {[%emt 0:02:57]} (23. Reb1 $14 Qb8 24. g4) 23... a4 {[%emt 0:02:15] Active counter play!} 24. Ng5 {[%emt 0:07:59]} (24. Bxa4 Nxd4 25. cxd4 Bxa4 $17) (24. g4 $1 $11) 24... f6 {[%emt 0:08:14]} (24... Na5 $1 $15 25. Bc2 Nb3) 25. exf6+ {[%emt 0:00:28]} Rxf6 {[%emt 0:00:03]} 26. Qg3 {[%emt 0:00:15][%cal Od1h5]} Rfxf2 {[%emt 0:04:20] White must now prevent ...Bc8.} 27. Nf3 $2 {[%emt 0:00:32] Excellent horsemanship. Loses the game.} (27. Bxa4 $11 {and White stays safe.} Qb8 28. Qxb8 Nxb8 29. Bxd7 Nxd7 (29... Bxg5 30. Bxe6 Bxe3 31. Rxe3 $11) 30. a4 (30. Nxe6+ Kh6 $11)) 27... Qb8 $36 {[%emt 0:04:16][%mdl 2048] Black is in control.} 28. Qxb8 {[%emt 0:16:05]} Nxb8 {[%emt 0:00:38]} 29. Nxd5 $2 {[%emt 0:00:01]} (29. Ng5) 29... Rxg2+ $19 {[%emt 0:06:28]} 30. Kh1 {[%emt 0:00:05] [#]} Bxh4 {[%emt 0:03:33][%mdl 512]} 31. Nxh4 {[%emt 0:01:06]} (31. Ne3 Bxe1) 31... Rh2+ {[%emt 0:00:40]} 32. Kg1 {[%emt 0:00:04]} Rxh4 {[%emt 0:00:26]} 33. Nb4 {[%emt 0:00:36]} Rh3 {[%emt 0:01:55]} 34. Rc1 {[%emt 0:00:22]} Rg3+ {[%emt 0:00:57]} 35. Kf1 {[%emt 0:00:13]} e5 {[%emt 0:11:00][%cal Rd7h3]} 36. Re2 {[%emt 0:00:46]} Rxe2 {[%emt 0:04:39]} 37. Bxe2 {[%emt 0:00:08]} exd4 {[%emt 0:01:38]} 38. cxd4 {[%emt 0:00:02]} Rxa3 {[%emt 0:00:48]} 39. Rc2 {[%emt 1:02:50]} (39. Bxc4 $142 h4 40. d5) 39... c3 {And now ...Bf5 would win. Black is clearly winning.} 40. Rxc3 {[%emt 0:00:00]} Rb3 {[%emt 0:03:12]} (40... Rxc3 $142 41. Ke1 a3) 41. Rc4 {[%emt 0:00:00]} a3 {[%emt 0:00:51][%cal Ob3b4] Threatens to win with ...Rxb4!} 42. d5 {[%emt 0:00:00] [#]} Rxb4 $1 {[%emt 0:01:46]} 43. Kf2 {[%emt 0:00:00]} (43. Rc3 a2) 43... a2 44. Rxb4 {[%emt 0:00:00] Weighted Error Value: White=0.73/Black=0.38.  Loses game:     	White=1     	---        Mistake:       	White=5     	Black=3      Inaccurate:     	White=4     	Black=3      OK:         	White=8     	Black=14     Best:        	White=3     	Black=2} 0-1